bitfinex-derivatives/quotes_ETHF0:USTF0_20250803
["timestamp","ask_amount","ask_price","bid_price","bid_amount"]
[1754261785263,1.0989,3504.4,3504.3,1.8148]
[1754261785264,1.5121,3504.4,3504.3,1.8148]
[1754261785767,1.7642,3504.4,3504.3,1.8148]
[1754261786365,0.57071,3504.3,3504.0,0.3051]
[1754261786570,0.57076,3504.0,3503.8,0.4848]
[1754261786866,0.57076,3504.0,3503.6,0.2075]
[1754261786867,1.5637,3503.7,3503.6,0.2075]
[1754261787063,1.7642,3503.7,3503.6,1.0243]
[1754261787265,1.7642,3503.7,3503.6,1.5091]
[1754261787465,1.7642,3503.7,3503.6,1.0243]
[1754261788670,1.7642,3503.7,3503.6,0.3051]
[1754261789672,1.7642,3503.7,3503.6,1.0243]
[1754261789869,1.5121,3503.7,3503.6,1.8148]
[1754261790271,3.2078,3504.0,3503.9,0.4179]
[1754261790470,3.7334,3504.0,3503.4,0.3013]
[1754261790776,1.7642,3503.9,3503.8,0.8139]
[1754261790976,1.5121,3503.9,3503.8,1.33]
[1754261791176,1.5121,3503.9,3503.8,1.8148]
[1754261791571,3.2078,3504.0,3503.3,2.15410218]
[1754261791770,3.2078,3504.4,3504.3,1.8148]
[1754261792074,3.5207,3504.4,3504.3,1.8148]
[1754261792372,4.7199,3504.4,3504.3,1.8148]
[1754261792768,0.57071,3504.3,3504.0,0.4848]
[1754261792969,1.7642,3504.1,3504.0,1.0243]
[1754261793164,1.5121,3504.1,3504.0,1.5091]
[1754261793569,1.5121,3504.1,3504.0,1.8148]
[1754261795674,0.57069,3504.5,3504.1,0.57074]
[1754261795976,1.5121,3504.6,3504.5,1.33]
[1754261796177,2.32517869,3504.6,3504.5,1.8148]
[1754261797178,2.32517869,3504.6,3504.5,1.33]
[1754261797376,1.7642,3504.6,3504.5,1.0243]
[1754261797670,2.57739821,3504.6,3504.5,1.0243]
[1754261797876,2.57739821,3504.6,3504.5,0.3051]
[1754261799476,2.75820656,3504.6,3504.5,0.3051]
[1754261800383,2.75820656,3504.6,3504.5,1.0243]
[1754261801584,2.75820656,3504.6,3504.5,0.5126]
[1754261802382,2.75823187,3504.6,3504.5,0.5126]
[1754261803486,5.96603187,3504.6,3504.5,0.8139]
[1754261803887,5.23993187,3504.6,3504.0,0.3001]
[1754261804184,0.3117,3504.1,3504.0,0.9905]
[1754261804385,0.77,3504.1,3504.0,0.9905]
[1754261804586,0.77,3504.1,3504.0,1.7541]
[1754261805186,0.6352911,3504.1,3504.0,1.7541]
[1754261805782,1.3583911,3504.1,3504.0,0.6944]
[1754261805983,3.76449328,3504.1,3504.0,1.0136]
[1754261806383,4.33523328,3504.1,3504.0,1.0136]
[1754261806985,1.9291311,3504.1,3504.0,1.7541]
[1754261807187,1.3583911,3504.1,3504.0,1.7541]
[1754261809390,1.6103911,3504.1,3504.0,1.7541]
[1754261810089,0.7775,3503.9,3503.7,1.5567]
[1754261810301,0.9845,3503.7,3503.6,0.1974]
[1754261810487,1.4931,3503.7,3503.6,0.3943]
[1754261810682,1.4931,3503.7,3503.6,1.0136]
[1754261810880,1.4931,3503.7,3503.6,1.458]
[1754261811077,1.7451,3503.7,3503.6,1.458]
[1754261811885,1.4931,3503.7,3503.6,1.0136]
[1754261812082,1.7451,3503.7,3503.6,1.0136]
[1754261812289,1.7451,3503.7,3503.6,1.458]
[1754261812487,1.7451,3503.7,3503.6,1.7541]
[1754261812882,1.7451,3503.7,3503.6,1.0136]
[1754261813088,1.7451,3503.7,3503.6,0.3001]
[1754261813482,0.57083,3503.6,3503.0,0.57091]
[1754261813789,3.12190218,3503.5,3503.4,0.8167]
[1754261814085,0.7156,3503.5,3503.4,1.7541]
[1754261814292,1.4931,3503.5,3503.4,1.7541]
[1754261819386,1.4931,3503.5,3503.4,0.6944]
[1754261819592,3.89940218,3503.5,3503.4,0.4975]
[1754261819888,0.7156,3503.2,3503.1,0.3001]
[1754261820093,1.7453,3503.0,3502.9,0.3001]
[1754261820394,1.4931,3502.7,3502.6,0.4975]
[1754261820589,2.31628,3502.7,3502.6,0.4975]
[1754261821293,1.7453,3502.7,3502.6,0.4975]
[1754261822092,1.7453,3502.7,3502.6,0.3001]
[1754261822894,3.89940218,3502.7,3502.6,1.0136]
[1754261823295,3.64720218,3502.7,3502.6,1.7541]
[1754261823594,1.4931,3502.7,3502.6,1.7541]
[1754261831691,3.2078,3502.8,3502.6,2.32508]
[1754261831895,3.2078,3502.8,3502.6,1.26138]
[1754261832096,0.8826,3503.2,3503.1,0.6904]
[1754261832297,2.064,3503.2,3503.1,1.7541]
[1754261833796,1.7448,3503.2,3503.1,1.7541]
[1754261833994,3.77868,3503.3,3503.1,1.7878]
[1754261834196,5.26928,3503.3,3503.2,1.8071]
[1754261835196,5.52148,3503.3,3503.2,1.8071]
[1754261835504,5.52148,3503.3,3503.2,1.329]
[1754261836496,5.52148,3503.3,3503.2,0.4976]
[1754261836703,1.29569,3502.7,3502.6,1.0186]
[1754261836902,4.21569218,3502.7,3502.6,1.8071]
[1754261840411,3.64470218,3502.7,3502.6,1.8071]
[1754261840901,1.1754,3502.7,3502.6,1.8071]
[1754261841092,0.7767,3502.7,3502.6,1.8071]
[1754261842105,3.2078,3502.8,3502.7,1.8071]
[1754261842512,20.2357,3503.2,3503.1,1.8071]
[1754261843101,0.7767,3503.2,3503.1,1.8071]
[1754261843904,3.2078,3503.3,3503.1,1.8071]
[1754261844110,3.2078,3503.3,3503.2,1.8071]
[1754261844608,4.6984,3503.3,3503.2,1.8071]
[1754261846613,4.3832,3503.3,3503.2,0.7151]
[1754261846805,3.9325,3503.3,3503.2,0.7151]
[1754261847105,4.6984,3503.3,3503.2,1.8071]
[1754261847507,5.51201223,3503.3,3503.2,1.8071]
[1754261847808,5.76421223,3503.3,3503.2,1.8071]
[1754261848608,5.51201223,3503.3,3503.2,1.8071]
[1754261851014,4.6984,3503.3,3503.2,1.8071]
[1754261858317,5.51229936,3503.3,3503.2,1.8071]
[1754261858720,1.61086,3502.8,3502.7,0.4172]
[1754261859021,4.01716218,3502.8,3502.7,0.808]
[1754261859316,4.46786218,3502.8,3502.7,0.808]
[1754261859714,3.89690218,3502.8,3502.7,0.808]
[1754261859920,3.64470218,3502.8,3502.7,1.8071]
[1754261861622,3.89690218,3502.8,3502.7,1.8071]
[1754261863225,3.64470218,3502.8,3502.7,1.8071]
[1754261863622,1.4906,3502.8,3502.7,1.8071]
[1754261864127,4.2404,3503.3,3503.2,0.7458]
[1754261864321,4.2404,3503.3,3503.2,1.8268]
[1754261864322,24.68346912,3503.3,3503.2,1.8268]
[1754261864825,27.3078713,3503.3,3503.2,1.8268]
[1754261865124,27.30786472,3503.3,3503.2,1.8268]
[1754261866820,25.15376254,3503.3,3503.2,1.8268]
[1754261867125,23.65085573,3503.3,3503.2,1.8268]
[1754261867720,23.46994128,3503.3,3503.2,1.8268]
[1754261869227,24.24034128,3503.3,3503.2,1.8268]
[1754261869730,23.4262,3503.3,3503.2,1.8268]
[1754261870222,20.2184,3503.3,3503.2,1.8268]
[1754261870818,26.31280218,3503.3,3503.2,1.8268]
[1754261871124,1.36199,3503.2,3502.9,1.2903]
[1754261871325,1.1821,3503.0,3502.9,0.7458]
[1754261871521,1.5029,3503.0,3502.9,0.7458]
[1754261871723,0.9855,3503.0,3502.9,0.7458]
[1754261871922,0.9855,3503.0,3502.9,1.8268]
[1754261872323,1.1821,3503.0,3502.9,1.8268]
[1754261872524,1.5029,3503.0,3502.9,1.8268]
[1754261872929,3.90920218,3503.0,3502.9,1.8268]
[1754261873125,0.57099,3502.7,3502.4,0.9815]
[1754261873326,1.5029,3502.5,3502.4,0.5258]
[1754261873526,1.5029,3502.5,3502.4,1.8268]
[1754261875029,1.1821,3502.5,3502.4,1.8268]
[1754261875342,1.5029,3502.5,3502.4,1.8268]
[1754261880628,1.5029,3502.5,3502.4,0.5258]
[1754261880828,1.5029,3502.5,3502.4,0.3089]
[1754261881028,1.7551,3502.5,3502.4,0.3089]
[1754261881228,1.7551,3502.5,3502.4,1.0515]
[1754261881429,1.7551,3502.5,3502.4,1.5072]
[1754261881628,1.7551,3502.5,3502.4,1.8268]
[1754261881834,1.5029,3502.5,3502.4,1.8268]
[1754261889834,22.6558,3502.7,3502.4,2.08891]
[1754261890039,22.9559,3502.7,3502.6,1.2015]
[1754261890241,24.1587,3502.7,3502.6,1.8268]
[1754261891639,1.7547,3502.4,3502.3,0.8422]
[1754261891940,1.7547,3502.4,3502.3,1.5072]
[1754261892136,1.7547,3502.4,3502.3,1.8268]
[1754261892338,1.5029,3502.4,3502.3,1.8268]
[1754261892841,0.3001,3502.4,3502.3,0.3089]
[1754261893041,1.7547,3502.4,3502.3,1.0515]
[1754261893437,1.7547,3502.4,3502.3,1.5072]
[1754261893642,1.7547,3502.4,3502.3,0.5258]
[1754261893944,1.7547,3502.4,3502.3,0.3089]
[1754261894344,1.7547,3502.4,3502.3,0.614]
[1754261895745,1.7547,3502.4,3502.3,0.8188]
[1754261896339,1.7547,3502.4,3502.3,1.0215]
[1754261896540,1.7547,3502.4,3502.3,1.7923]
[1754261897448,0.7828,3502.5,3502.4,1.8021]
[1754261898640,0.3255,3502.5,3502.4,1.8021]
[1754261899142,0.7828,3502.5,3502.4,1.8021]
[1754261899447,1.2105,3502.5,3502.4,1.8021]
[1754261899745,1.5154,3502.5,3502.4,1.8021]
[1754261901441,19.9063,3502.6,3502.5,0.6238]
[1754261901645,20.2318,3502.6,3502.5,1.8021]
[1754261901845,19.7745,3502.6,3502.5,1.8021]
[1754261902944,19.449,3502.6,3502.5,1.8021]
[1754261905737,19.9063,3502.6,3502.5,1.8021]
[1754261906136,19.449,3502.6,3502.5,1.8021]
[1754261906337,20.32486,3502.8,3502.5,0.7236]
[1754261906537,2.0849096,3502.7,3502.6,0.7236]
[1754261906843,1.26962334,3502.7,3502.6,1.8021]
[1754261907348,0.96472334,3502.7,3502.6,1.8021]
[1754261907552,0.7828,3502.7,3502.6,1.8021]
[1754261907842,0.3255,3502.7,3502.6,1.8021]
[1754261908046,0.7828,3502.7,3502.6,1.8021]
[1754261908651,0.3255,3502.7,3502.6,1.8021]
[1754261909548,19.449,3502.8,3502.6,1.8021]
[1754261910142,19.449,3502.8,3502.2,3.2078]
[1754261910143,3.5333,3503.1,3503.0,0.7236]
[1754261910348,24.43572234,3503.1,3503.0,1.8021]
[1754261910549,25.16832234,3503.1,3503.0,1.8021]
[1754261912154,23.97842234,3503.1,3503.0,1.8021]
[1754261912456,23.62049289,3503.1,3503.0,1.8021]
[1754261912944,23.62044282,3503.1,3503.0,1.8021]
[1754261913549,26.507145,3503.1,3503.0,0.7262]
[1754261913857,22.83764282,3503.1,3503.0,1.8021]
[1754261914447,4.17244282,3503.1,3503.0,1.8021]
[1754261914758,3.9906,3503.1,3503.0,1.8021]
[1754261915150,19.447,3503.2,3503.0,1.29451]
[1754261915351,19.447,3503.2,3503.1,1.8021]
[1754261915852,19.447,3503.2,3503.1,0.7236]
[1754261916053,19.447,3503.2,3503.1,1.8021]
[1754261916752,19.9043,3503.2,3503.1,1.8021]
[1754261917058,20.5347,3503.2,3503.1,1.8021]
[1754261918357,20.7496,3503.2,3503.1,1.8021]
[1754261918657,21.2146,3503.2,3503.1,0.3187]
[1754261920157,21.2146,3503.2,3503.1,0.6238]
[1754261921761,21.2146,3503.2,3503.1,1.0313]
[1754261921968,21.2146,3503.2,3503.1,1.8021]
[1754261923468,1.7676,3503.2,3503.1,1.8021]
[1754261928076,1.5154,3503.2,3503.1,1.8021]
[1754261933275,1.2105,3503.2,3503.1,1.8021]
[1754261933778,1.5272,3503.2,3503.1,1.8021]
[1754261934272,4.2067,3503.5,3503.4,1.8086]
[1754261934476,23.94750762,3503.5,3503.4,1.8086]
[1754261934673,24.46450762,3503.5,3503.4,1.8086]
[1754261934873,4.7215,3503.5,3503.4,1.8086]
[1754261935077,24.1645,3503.5,3503.4,1.8086]
[1754261940784,20.9567,3503.5,3503.4,1.8086]
[1754261943390,1.5137,3503.5,3503.4,1.8086]
[1754261943592,20.9547,3503.5,3503.4,1.8086]
[1754261945884,21.2068,3503.5,3503.4,1.0516]
[1754261947384,21.2068,3503.5,3503.4,1.4933]
[1754261949985,21.2068,3503.5,3503.4,1.8086]
[1754261950185,20.9547,3503.5,3503.4,1.8086]
[1754261950688,1.5137,3503.5,3503.4,1.8086]
[1754261950887,20.9527,3503.5,3503.4,1.8086]
[1754261951985,20.9527,3503.5,3503.2,0.57088]
[1754261952285,21.29374,3503.5,3503.4,0.3255]
[1754261952680,21.77564,3503.5,3503.4,0.6397]
[1754261952881,21.77564,3503.5,3503.4,0.849]
[1754261953680,21.52354,3503.5,3503.0,3.77872]
[1754261953885,0.7246,3503.1,3503.0,4.97172]
[1754261954089,1.5137,3503.1,3503.0,4.97172]
[1754261954387,1.5137,3503.1,3503.0,5.29752]
[1754261954591,1.5137,3503.1,3503.0,5.61692]
[1754261955690,0.7837,3503.1,3503.0,5.61692]
[1754261956688,19.7594,3503.3,3503.0,5.61692]
[1754261956890,19.7594,3503.3,3503.0,4.49162]
[1754261957092,0.4687,3503.2,3503.1,1.8382]
[1754261958089,0.7837,3503.2,3503.1,1.8382]
[1754261959591,1.1041,3503.2,3503.1,1.8382]
[1754261960090,0.7837,3503.2,3503.1,1.8382]
[1754261961088,1.1041,3503.2,3503.1,1.8382]
[1754261963691,0.7837,3503.2,3503.1,1.8382]
[1754261964690,1.1041,3503.2,3503.1,1.8382]
[1754261967794,1.3008,3503.2,3503.1,1.8382]
[1754261968295,1.5137,3503.2,3503.1,1.8382]
[1754261968989,1.1933,3503.2,3503.1,1.8382]
[1754261969284,0.7837,3503.2,3503.1,1.8382]
[1754261969697,1.5137,3503.2,3503.1,1.8382]
[1754261971799,1.5137,3503.2,3503.1,2.40911]
[1754261972902,1.5137,3503.2,3503.1,1.8382]
[1754261993024,0.9966,3503.2,3503.1,1.8382]
[1754261993221,0.2998,3503.3,3503.2,1.97539]
[1754261993415,19.8787,3503.4,3503.3,1.8081]
[1754261993618,20.9049,3503.4,3503.3,1.8081]
[1754261994528,20.6893,3503.4,3503.3,1.8081]
[1754261994927,20.9049,3503.4,3503.3,1.8081]
[1754262000323,1.4759,3503.4,3503.3,1.8081]
[1754262000526,3.9573,3503.9,3503.8,1.8081]
[1754262000729,4.95233015,3503.9,3503.8,1.8081]
[1754262000929,5.37683015,3503.9,3503.8,1.8081]
[1754262001228,5.67873015,3503.9,3503.8,1.8081]
[1754262001429,5.49705009,3503.9,3503.8,1.8081]
[1754262002025,2.28925009,3503.9,3503.8,1.8081]
[1754262002228,4.6792809,3503.9,3503.8,1.8081]
[1754262003630,1.4759,3503.9,3503.8,1.8081]
[1754262003930,0.7495,3503.9,3503.8,1.8081]
[1754262004324,1.4759,3503.9,3503.8,1.8081]
[1754262006433,0.7243,3503.7,3503.6,0.89252]
[1754262006635,1.7271,3503.7,3503.6,0.89252]
[1754262007033,1.7271,3503.7,3503.6,1.20692]
[1754262007332,1.7271,3503.7,3503.6,1.61052]
[1754262007532,1.7271,3503.7,3503.6,2.06712]
[1754262008235,1.7271,3503.7,3503.1,5.59783081]
[1754262008236,0.4245,3503.5,3503.4,0.57084]
[1754262008437,4.11713081,3503.5,3503.4,0.88524]
[1754262008742,4.11713081,3503.5,3503.4,1.08904]
[1754262009037,4.11713081,3503.5,3503.4,1.61054]
[1754262009236,4.11713081,3503.5,3503.4,2.06714]
[1754262010141,4.11713081,3503.5,3503.4,2.37894]
[1754262011440,3.86593081,3503.5,3503.4,2.37894]
[1754262011745,1.4759,3503.5,3503.4,2.37894]
[1754262012136,0.9584,3503.5,3503.4,2.37894]
[1754262012642,0.7495,3503.5,3503.4,2.37894]
[1754262014232,3.14933081,3503.8,3503.7,1.8093]
[1754262014429,23.27663081,3503.8,3503.7,1.8093]
[1754262015139,23.52863081,3503.8,3503.7,1.8093]
[1754262018945,23.52863081,3503.8,3503.7,0.2943]
[1754262019442,23.52863081,3503.8,3503.7,0.7979]
[1754262019643,23.52863081,3503.8,3503.7,1.2864]
[1754262019945,23.52863081,3503.8,3503.7,1.4912]
[1754262021543,1.016,3503.7,3503.6,0.2943]
[1754262021746,1.7156,3503.7,3503.6,0.2943]
[1754262022048,1.7156,3503.7,3503.6,0.7979]
[1754262022240,1.4636,3503.7,3503.6,1.3208]
[1754262022442,20.8846,3503.7,3503.6,1.8093]
[1754262022946,19.7162,3503.7,3503.6,1.8093]
[1754262023142,3.9671,3503.9,3503.8,1.8093]
[1754262023646,3.503,3503.9,3503.8,1.8093]
[1754262024343,3.2078,3503.9,3503.8,1.8093]
[1754262024650,4.6714,3504.3,3504.2,2.38003]
[1754262024946,25.08378692,3504.3,3504.2,2.38003]
[1754262025142,25.08378692,3504.3,3503.5,5.59783081]
[1754262025143,0.57083,3503.6,3503.5,3.2078]
[1754262025341,0.57083,3503.6,3502.4,5.01695555]
[1754262025342,0.2952,3502.5,3502.4,0.7979]
[1754262025543,0.2952,3502.5,3502.1,0.2943]
[1754262025544,0.2952,3502.2,3502.1,0.2943]
[1754262025746,0.57108,3502.0,3501.9,1.32229869]
[1754262025947,1.33038,3502.0,3501.9,1.32229869]
[1754262026138,1.33038,3502.0,3501.9,1.02799869]
[1754262026337,0.2952,3501.4,3501.3,0.303]
[1754262026553,0.7593,3501.4,3501.3,1.8093]
[1754262026743,3.2078,3501.5,3501.3,1.8093]
[1754262026944,3.6719,3501.5,3501.4,1.8093]
[1754262027149,0.7593,3501.5,3501.4,1.8093]
[1754262027653,21.87103081,3501.7,3501.4,1.8093]
[1754262027654,22.33513081,3501.7,3501.4,0.7235]
[1754262027845,20.2403,3501.7,3501.6,1.8093]
[1754262028045,5.59783081,3501.9,3501.6,0.7235]
[1754262028239,3.2078,3501.9,3501.7,0.7235]
[1754262028442,0.7593,3501.8,3501.7,0.7235]
[1754262028849,3.2078,3501.9,3501.8,0.57112]
[1754262029047,0.57102,3502.5,3501.8,1.8093]
[1754262029048,19.484,3502.1,3501.8,1.8093]
[1754262029246,19.9481,3502.1,3502.0,1.8093]
[1754262029444,20.2433,3502.1,3502.0,1.8093]
[1754262029845,3.6719,3502.3,3502.0,1.8093]
[1754262030043,22.6918,3502.3,3502.2,0.5229]
[1754262030355,22.6918,3502.3,3502.2,1.8093]
[1754262030356,23.4511,3502.3,3502.2,1.8093]
[1754262032954,3.503,3502.3,3502.2,1.8093]
[1754262033154,22.986,3502.3,3502.2,1.8093]
[1754262033953,3.2078,3502.3,3502.2,1.8093]
[1754262034259,3.503,3502.3,3502.2,1.8093]
[1754262034455,3.9671,3502.3,3502.2,1.8093]
[1754262035951,0.2952,3502.0,3501.8,0.57111]
[1754262036146,0.86633,3501.8,3501.4,3.2078]
[1754262036355,0.57121,3501.2,3500.7,0.57129]
[1754262036560,0.4641,3501.3,3500.7,1.515]
[1754262036561,0.7593,3500.8,3500.7,1.515]
[1754262036859,0.7593,3500.9,3500.8,2.38058]
[1754262038550,0.7593,3500.9,3500.8,1.8093]
[1754262038951,0.7593,3500.9,3500.8,1.3208]
[1754262039457,0.7593,3500.9,3500.8,1.8093]
[1754262039858,0.7593,3500.9,3500.8,0.2943]
[1754262040362,0.4641,3500.8,3500.3,0.4054]
[1754262040551,0.7593,3500.4,3500.3,1.78336]
[1754262041159,19.49,3500.7,3500.6,1.0027]
[1754262041357,19.7852,3500.7,3500.6,1.0027]
[1754262041655,20.2493,3500.7,3500.6,1.0027]
[1754262041855,26.32769267,3500.7,3500.6,0.2943]
[1754262042055,0.2952,3500.1,3500.0,0.2943]
[1754262042250,0.2952,3500.1,3498.6,1.42907]
[1754262042251,0.2952,3499.7,3499.3,0.303]
[1754262042454,3.16579267,3499.5,3499.4,0.5973]
[1754262042851,3.16579267,3499.5,3499.4,0.7979]
[1754262043052,19.531,3499.9,3499.8,0.7235]
[1754262043252,19.8262,3499.9,3499.8,1.8093]
[1754262043459,19.8262,3499.9,3499.8,1.0027]
[1754262043665,20.2903,3499.9,3499.8,0.2943]
[1754262043959,20.2903,3499.9,3499.5,1.0312]
[1754262043960,0.7915,3499.6,3499.5,1.0312]
[1754262044161,0.7915,3499.6,3499.5,0.3057]
[1754262044353,0.4898,3499.2,3499.0,0.87217]
[1754262044556,0.7915,3499.1,3499.0,1.0363]
[1754262044958,0.7915,3499.1,3499.0,1.342]
[1754262045861,0.3017,3499.1,3499.0,0.3057]
[1754262046058,1.28637,3499.0,3498.9,1.02888009]
[1754262046260,0.4153,3497.9,3497.8,2.38207]
[1754262046465,0.5128,3498.1,3498.0,0.518]
[1754262046659,1.0026,3498.1,3498.0,1.8103]
[1754262046966,1.2046,3498.1,3498.0,1.8103]
[1754262047861,1.2046,3498.1,3498.0,0.3057]
[1754262048062,1.2046,3498.1,3498.0,1.8103]
[1754262048567,1.2046,3498.1,3498.0,1.342]
[1754262048764,1.2046,3498.1,3498.0,0.3057]
[1754262049061,1.2046,3498.1,3497.8,0.3057]
[1754262049062,1.2046,3497.9,3497.8,0.3057]
[1754262049267,3.7217,3497.9,3497.4,0.7689]
[1754262049561,1.0026,3497.7,3497.6,1.5046]
[1754262049758,1.0026,3497.7,3497.6,1.8103]
[1754262049956,3.6976,3497.9,3497.7,0.57179]
[1754262050160,3.2078,3497.9,3497.8,1.8103]
[1754262050467,3.2078,3498.3,3498.1,0.7357]
[1754262050666,3.2078,3498.3,3498.2,1.8103]
[1754262050862,0.2995,3498.4,3498.3,1.342]
[1754262051066,0.7893,3498.4,3498.3,1.8103]
[1754262052856,3.2078,3498.7,3498.4,0.6063]
[1754262053061,3.9226,3498.7,3498.6,1.8103]
[1754262053263,23.5146,3498.7,3498.6,1.8103]
[1754262053468,24.0044,3498.7,3498.6,1.8103]
[1754262054872,23.8035,3498.7,3498.6,1.8103]
[1754262055062,24.0045,3498.7,3498.6,1.8103]
[1754262059568,23.8035,3498.7,3498.6,1.8103]
[1754262059869,4.29335,3499.2,3499.1,0.7357]
[1754262060073,25.38802104,3499.2,3499.1,1.8103]
[1754262060267,5.03427104,3499.2,3499.1,1.8103]
[1754262060773,24.62527104,3499.2,3499.1,1.8103]
[1754262061174,4.03167104,3499.2,3499.1,1.8103]
[1754262062068,3.2078,3499.2,3499.1,1.8103]
[1754262062268,4.03254847,3499.2,3499.1,1.8103]
[1754262063676,0.82474847,3499.2,3499.1,1.8103]
[1754262065769,22.7958,3499.6,3499.5,0.7357]
[1754262066068,3.2078,3499.6,3499.5,2.38179]
[1754262066467,1.02365568,3500.0,3499.8,2.38174]
[1754262066675,1.02365568,3500.0,3499.9,1.8103]
[1754262066873,4.23145568,3500.1,3500.0,1.8103]
[1754262067183,4.1959,3500.1,3500.0,1.8103]
[1754262067474,4.6102,3500.1,3500.0,1.8103]
[1754262068079,4.4092,3500.1,3499.3,4.2824]
[1754262068277,4.4092,3500.1,3499.8,2.38174]
[1754262068278,1.4024,3499.9,3499.8,2.38174]
[1754262068770,0.57141,3500.0,3499.4,0.57151]
[1754262068970,1.4024,3499.3,3499.2,1.204]
[1754262069166,1.703,3499.3,3499.2,0.4179]
[1754262069367,0.6908,3499.2,3498.5,1.0746]
[1754262069574,0.7116,3499.0,3498.9,1.30728]
[1754262069773,1.2014,3499.0,3498.9,0.57158]
[1754262069976,0.9914,3498.9,3498.4,1.0746]
[1754262070176,0.1988,3498.5,3498.4,1.8103]
[1754262070785,23.36535,3499.2,3499.1,0.7357]
[1754262070786,23.5054,3499.2,3499.1,0.7357]
[1754262071076,1.4024,3499.2,3499.1,0.6063]
[1754262071273,1.703,3499.2,3499.1,0.3057]
[1754262071675,1.703,3499.2,3499.1,1.342]
[1754262071879,1.703,3499.2,3499.1,1.8103]
[1754262073075,4.9108,3499.2,3499.1,1.8103]
[1754262073279,1.703,3499.2,3499.1,1.8103]
[1754262073684,4.9108,3499.2,3499.1,1.8103]
[1754262074384,4.6102,3499.2,3499.1,1.8103]
[1754262075681,4.4092,3499.2,3498.9,0.57159]
[1754262075984,1.3989,3499.0,3498.9,2.37559]
[1754262076183,1.3989,3499.3,3499.2,1.31124]
[1754262076692,20.772,3499.3,3499.2,1.31124]
[1754262076894,20.772,3499.3,3499.2,2.37554]
[1754262077090,20.9729,3499.3,3499.2,1.804]
[1754262077289,21.2951,3499.3,3499.2,1.0427]
[1754262077490,21.2921,3499.3,3499.2,1.3529]
[1754262077692,22.10774693,3499.3,3499.2,1.804]
[1754262078292,0.7104,3499.0,3498.9,1.1908]
[1754262078486,0.7104,3499.0,3497.7,1.42946]
[1754262078487,0.7104,3498.5,3498.4,0.7397]
[1754262078688,0.7104,3498.5,3498.4,0.4295]
[1754262078689,1.3989,3498.5,3498.4,0.4295]
[1754262078994,1.3989,3498.0,3497.9,1.92465]
[1754262079189,4.2753117,3498.0,3497.9,1.804]
[1754262079394,4.5975117,3498.0,3497.9,1.804]
[1754262079587,1.7211,3498.0,3497.9,1.804]
[1754262079792,1.3989,3498.0,3497.9,1.804]
[1754262080297,2.01423891,3498.0,3497.9,1.804]
[1754262081898,2.21513891,3498.0,3497.9,1.804]
[1754262082999,21.79313891,3498.0,3497.9,1.804]
[1754262083492,1.3989,3498.0,3497.9,1.804]
[1754262087401,1.7211,3498.0,3497.9,0.3104]
[1754262087902,0.7104,3497.7,3497.6,1.0427]
[1754262088102,1.7211,3497.7,3497.6,1.0427]
[1754262088299,1.7211,3497.7,3497.6,1.804]
[1754262088498,3.2078,3497.9,3497.8,1.804]
[1754262088697,19.577,3498.5,3498.3,0.7397]
[1754262089004,19.578,3498.5,3498.4,2.37567]
[1754262089794,19.581,3498.6,3498.5,1.804]
[1754262089996,21.10335784,3498.6,3498.5,1.804]
[1754262090198,20.9799,3498.6,3498.5,0.6132]
[1754262090399,21.48129193,3498.6,3498.5,0.6132]
[1754262090801,21.48129193,3498.6,3498.5,0.8269]
[1754262091001,21.48129193,3498.6,3498.5,1.1371]
[1754262091305,3.2078,3498.8,3498.7,1.4938]
[1754262091605,3.2078,3498.8,3498.7,1.804]
[1754262095700,3.2078,3499.3,3499.2,2.37554]
[1754262095904,3.2078,3500.1,3500.0,1.3529]
[1754262096096,3.38679206,3500.1,3500.0,1.804]
[1754262096296,1.79579568,3501.1,3499.6,8.00227243]
[1754262096297,3.2078,3500.5,3500.4,1.3529]
[1754262096500,3.2078,3500.5,3500.4,1.804]
[1754262096904,3.2078,3501.6,3501.5,0.526]
[1754262097206,5.1188,3502.0,3501.9,1.804]
[1754262097400,5.441,3502.0,3501.9,1.804]
[1754262097604,5.9286,3502.0,3501.9,1.3529]
[1754262097799,5.9286,3502.0,3501.6,0.4511]
[1754262097800,0.2085,3501.7,3501.6,1.0643]
[1754262098000,1.7208,3501.7,3501.6,1.804]
[1754262098305,1.3986,3501.7,3501.6,1.804]
[1754262098500,4.2078,3502.0,3501.9,0.7397]
[1754262098700,4.2078,3502.0,3501.9,1.804]
[1754262099012,1.0,3502.0,3501.9,1.804]
[1754262099402,0.4876,3502.8,3502.5,0.7397]
[1754262099604,3.2078,3503.1,3503.0,1.804]
[1754262099808,0.7925,3504.0,3503.9,2.37477]
[1754262100006,4.3171,3504.9,3504.4,1.4938]
[1754262100309,1.1926,3504.8,3504.7,0.2137]
[1754262100504,1.8197,3504.8,3504.7,0.3104]
[1754262100705,1.8197,3504.8,3504.5,0.53981649]
[1754262100903,0.197,3504.7,3504.6,0.2137]
[1754262101105,0.7104,3504.7,3504.6,0.2137]
[1754262101712,1.8197,3504.7,3504.6,0.2137]
[1754262102508,3.2078,3504.9,3504.6,0.7397]
[1754262102708,1.0,3505.0,3504.8,1.02173]
[1754262102914,0.3222,3506.0,3504.9,0.2384]
[1754262103212,0.3222,3506.0,3505.8,0.2384]
[1754262103213,0.3222,3505.9,3505.8,0.2384]
[1754262104301,1.0815,3506.1,3505.6,3.2078]
[1754262104514,0.6261,3506.0,3505.6,3.2078]
[1754262104813,0.3094,3505.8,3505.6,3.2078]